bitfinex-derivatives/quotes_SOLF0:USTF0_20250716
["timestamp","ask_amount","ask_price","bid_price","bid_amount"]
[1752648568314,2.73180604,163.74,163.7,185.37180604]
[1752648568512,2.73180604,163.74,163.71,5.15262511]
[1752648568715,2.73180604,163.74,163.72,5.15262511]
[1752648568909,2.73180604,163.73,163.71,6.1077]
[1752648569108,2.73180604,163.73,163.72,5.15314107]
[1752648569508,2.73180604,163.73,163.72,6.1076]
[1752648570917,4.27017171,163.76,163.72,6.1076]
[1752648571718,4.27017171,163.76,163.73,6.1071]
[1752648571917,4.27017171,163.78,163.7,4.27017171]
[1752648572315,4.27017171,163.78,163.74,6.1066]
[1752648572513,4.27017171,163.78,163.7,4.27017171]
[1752648572708,4.27017171,163.78,163.71,5.14672616]
[1752648572911,4.27017171,163.78,163.74,6.1066]
[1752648573115,4.27017171,163.78,163.7,4.27017171]
[1752648573312,4.27017171,163.78,163.71,5.14698883]
[1752648573615,4.27017171,163.78,163.75,6.1063]
[1752648573810,4.27017171,163.81,163.74,4.27017171]
[1752648574017,4.27017171,163.81,163.77,6.1055]
[1752648575221,10.37447171,163.81,163.77,6.1055]
[1752648575622,6.104,163.82,163.78,6.1054]
[1752648575820,4.27017171,163.81,163.78,6.1054]
[1752648576417,10.37447171,163.81,163.78,6.1054]
[1752648576821,4.27017171,163.81,163.78,6.1054]
[1752648579222,10.37447171,163.81,163.78,6.1054]
[1752648581824,4.27017171,163.79,163.73,150.78408043]
[1752648582220,6.1056,163.78,163.75,6.1062]
[1752648582813,4.27017171,163.79,163.73,150.78408043]
[1752648583420,6.1057,163.78,163.75,6.1063]
[1752648585425,4.27017171,163.79,163.74,6.1068]
[1752648585627,4.27017171,163.78,163.7,4.27017171]
[1752648585823,4.27017171,163.78,163.71,5.12841956]
[1752648586022,4.27017171,163.84,163.72,9.39859127]
[1752648586226,4.27017171,163.8,163.72,4.27017171]
[1752648586728,10.37517171,163.8,163.75,6.1063]
[1752648587122,6.1051,163.79,163.75,6.1063]
[1752648588028,6.1055,163.78,163.75,6.1063]
[1752648589929,6.1051,163.79,163.75,6.1063]
[1752648590828,10.37497171,163.8,163.76,6.106]
[1752648592629,6.1051,163.79,163.76,6.106]
[1752648594328,4.27017171,163.8,163.76,6.106]
[1752648594527,10.37497171,163.8,163.76,6.106]
[1752648595531,6.1044,163.81,163.73,4.27017171]
[1752648595726,4.26697956,163.82,163.74,9.40733306]
[1752648595928,4.26697956,163.82,163.75,5.1403535]
[1752648596124,10.37097956,163.82,163.79,6.105]
[1752648596431,10.37097956,163.82,163.74,4.26697956]
[1752648596628,10.37097956,163.82,163.78,6.1053]
[1752648597127,6.104,163.82,163.78,6.1053]
[1752648598133,10.37100239,163.81,163.78,6.1053]
[1752648598833,180.88,163.85,163.73,4.26762381]
[1752648599032,4.26762381,163.83,163.74,5.14122401]
[1752648599234,4.26762381,163.83,163.75,5.14122401]
[1752648599436,4.26762381,163.83,163.76,5.14122401]
[1752648599626,4.26762381,163.83,163.75,4.26762381]
[1752648599830,4.26762381,163.83,163.76,5.14080501]
[1752648600030,4.26762381,163.83,163.8,6.1044]
[1752648600229,4.26762381,163.83,163.75,4.26762381]
[1752648600436,4.26762381,163.83,163.76,5.14009909]
[1752648600734,10.37152381,163.83,163.79,6.1049]
[1752648603132,10.37152381,163.83,163.8,6.1046]
[1752648603637,6.1039,163.82,163.79,6.1049]
[1752648604534,4.26639474,163.83,163.78,6.1053]
[1752648604738,180.88,163.85,163.78,6.1053]
[1752648604739,4.26639474,163.81,163.78,6.1053]
[1752648605236,10.37089474,163.81,163.78,6.1053]
[1752648606138,10.37089474,163.81,163.79,6.105]
[1752648606637,6.1041,163.82,163.79,6.105]
[1752648606834,10.37049474,163.82,163.79,6.105]
[1752648607939,10.37049474,163.82,163.73,4.26639474]
[1752648608140,10.37049474,163.82,163.74,5.13916601]
[1752648608337,10.37049474,163.82,163.75,5.13916601]
[1752648608641,10.37049474,163.82,163.76,5.13916601]
[1752648608940,10.37049474,163.82,163.74,4.26639474]
[1752648609244,10.37049474,163.82,163.78,6.1052]
[1752648609742,6.1043,163.81,163.78,6.1052]
[1752648615148,6.1043,163.81,163.79,6.105]
[1752648616748,10.37049474,163.82,163.79,6.105]
[1752648618549,10.37049474,163.82,163.8,6.1046]
[1752648618948,2.7306896,163.81,163.8,6.1046]
[1752648619744,2.7306896,163.81,163.79,6.1048]
[1752648621051,6.1041,163.82,163.79,6.1048]
[1752648621253,2.7306896,163.81,163.79,6.1048]
[1752648622254,2.7306896,163.81,163.8,6.1047]
[1752648623553,2.7306896,163.81,163.79,6.1049]
[1752648624855,2.7306896,163.8,163.78,6.1052]
[1752648625153,2.7306896,163.79,163.78,6.1052]
[1752648625549,2.7306896,163.8,163.78,6.1052]
[1752648626750,2.7306896,163.79,163.78,6.1052]
[1752648629856,2.7306896,163.79,163.77,6.1057]
[1752648630463,2.7306896,163.79,163.73,146.66441397]
[1752648630755,2.7306896,163.76,163.74,5.16507331]
[1752648630964,2.7306896,163.76,163.73,146.66441397]
[1752648630965,2.7306896,163.76,163.75,11.27137331]
[1752648631156,2.73213016,163.76,163.75,11.27137331]
[1752648632062,2.73213016,163.76,163.75,6.1063]
[1752648632361,2.73213016,163.77,163.76,6.1059]
[1752648634767,2.73181924,163.77,163.7,5.09377077]
[1752648634969,2.73181924,163.76,163.72,2.73181924]
[1752648635169,2.73181924,163.76,163.73,5.16688208]
[1752648635369,2.73181924,163.76,163.74,11.27378208]
[1752648635569,2.73181924,163.76,163.74,6.1069]
[1752648635870,2.73181924,163.75,163.74,6.1069]
[1752648636073,2.73181924,163.75,163.73,6.1071]
[1752648636670,2.73181924,163.74,163.72,6.1076]
[1752648636868,2.73181924,163.73,163.72,6.1076]
[1752648637071,2.73181924,163.73,163.72,11.27657354]
[1752648637265,2.73181924,163.73,163.72,5.16897354]
[1752648637662,2.73181924,163.73,163.71,6.1079]
[1752648639068,6.1077,163.72,163.67,180.48]
[1752648639274,4.27146778,163.73,163.68,5.16802597]
[1752648639475,4.27146778,163.73,163.64,9.36523855]
[1752648639675,10.37896778,163.73,163.7,6.1082]
[1752648640670,10.37896778,163.73,163.64,5.09377077]
[1752648640972,10.37896778,163.73,163.65,5.16060614]
[1752648641173,206.51265838,163.75,163.66,5.16060614]
[1752648641370,206.51265838,163.75,163.67,5.16060614]
[1752648641575,206.51265838,163.75,163.68,9.42800878]
[1752648641874,206.51265838,163.75,163.7,4.27146778]
[1752648642069,206.51265838,163.75,163.71,5.156541]
[1752648642271,6.1048,163.8,163.72,9.42481967]
[1752648642573,6.1048,163.8,163.72,4.27146778]
[1752648642977,6.105,163.79,163.72,4.27146778]
[1752648643575,6.105,163.79,163.76,6.1061]
[1752648644472,6.105,163.79,163.75,6.1064]
[1752648645684,6.1056,163.78,163.75,6.1064]
[1752648646180,6.1056,163.78,163.74,6.1067]
[1752648646678,10.37746778,163.77,163.7,4.27146778]
[1752648646878,4.27146778,163.77,163.74,6.1069]
[1752648648080,10.37746778,163.77,163.73,6.1071]
[1752648648376,205.41841352,163.81,163.67,17.31277077]
[1752648648377,4.27146778,163.79,163.7,4.27146778]
[1752648648581,4.27146778,163.79,163.71,5.15016782]
[1752648648878,4.27146778,163.79,163.74,6.1066]
[1752648650076,385.91841352,163.81,163.74,6.1066]
[1752648650277,4.27146778,163.8,163.72,4.27146778]
[1752648650681,10.37636778,163.8,163.72,4.27146778]
[1752648651077,10.37636778,163.8,163.76,6.1059]
[1752648652877,392.02291352,163.81,163.74,4.27146778]
[1752648653381,385.91841352,163.81,163.74,4.27146778]
[1752648654381,385.91841352,163.81,163.77,6.1055]
[1752648654877,205.41841352,163.81,163.77,6.1055]
[1752648655985,205.41841352,163.81,163.78,6.1053]
[1752648656887,205.41841352,163.81,163.79,6.1049]
[1752648657091,10.37516778,163.83,163.79,6.1049]
[1752648658387,10.37516778,163.83,163.78,6.1053]
[1752648659484,6.104,163.82,163.77,6.1055]
[1752648659990,4.27146778,163.81,163.74,4.27146778]
[1752648660191,4.27146778,163.81,163.75,5.14333544]
[1752648660391,4.27146778,163.79,163.72,143.82947413]
[1752648660688,10.37656778,163.79,163.74,6.1067]
[1752648661484,10.37656778,163.79,163.75,6.1065]
[1752648662288,6.1051,163.79,163.75,6.1065]
[1752648662488,4.27146778,163.8,163.76,6.1061]
[1752648664097,10.37616778,163.8,163.76,6.1061]
[1752648665695,6.1051,163.79,163.75,6.1064]
[1752648665994,4.27146778,163.8,163.72,148.10094191]
[1752648666194,4.27146778,163.8,163.73,5.14456635]
[1752648666394,6.1052,163.79,163.74,5.14456635]
[1752648666596,10.37666778,163.79,163.72,148.10094191]
[1752648666795,10.37666778,163.79,163.73,5.14410128]
[1752648666989,10.37666778,163.79,163.74,11.25080128]
[1752648667188,10.37666778,163.79,163.74,6.1067]
[1752648667902,6.1055,163.78,163.74,6.1067]
[1752648668196,392.8634569,163.84,163.73,6.1072]
[1752648668197,4.27146778,163.77,163.73,6.1072]
[1752648668596,10.37746778,163.77,163.73,6.1072]
[1752648670301,10.37746778,163.77,163.74,6.1068]
[1752648672004,10.37746778,163.77,163.73,6.1071]
[1752648672904,10.37746778,163.77,163.74,6.1068]
[1752648677003,180.42,163.79,163.71,4.27146778]
[1752648677209,4.27146778,163.81,163.72,5.14610681]
[1752648677409,4.27146778,163.81,163.73,5.14610681]
[1752648677606,4.26768572,163.81,163.74,5.14610681]
[1752648677802,180.4,163.83,163.71,5.09377077]
[1752648677999,4.26768572,163.79,163.72,5.14377374]
[1752648678200,4.26768572,163.79,163.73,5.14377374]
[1752648678404,10.37298572,163.79,163.75,6.1063]
[1752648679209,6.1054,163.78,163.75,6.1063]
[1752648685613,6.1058,163.77,163.75,6.1063]
[1752648687308,6.1055,163.78,163.75,6.1063]
[1752648694325,4.26768572,163.79,163.75,6.1063]
[1752648695024,6.1056,163.78,163.75,6.1063]
[1752648695924,4.26768572,163.79,163.71,4.26768572]
[1752648695925,6.1048,163.8,163.71,4.26768572]
[1752648696222,4.26768572,163.81,163.73,4.26768572]
[1752648696521,4.26768572,163.81,163.78,6.1051]
[1752648696817,4.26768572,163.81,163.73,4.26768572]
[1752648697017,10.37228572,163.81,163.77,6.1056]
[1752648697224,10.37228572,163.81,163.73,4.26768572]
[1752648697520,10.37212272,163.81,163.77,6.1055]
[1752648697929,10.37212272,163.81,163.73,4.26752272]
[1752648698125,10.37212272,163.81,163.78,6.1053]
[1752648699322,4.26752272,163.81,163.79,6.105]
[1752648701025,10.37202272,163.81,163.78,6.1053]
[1752648702227,6.1045,163.81,163.78,6.1053]
[1752648702427,10.37202272,163.81,163.79,6.105]
[1752648702623,4.26752272,163.81,163.79,6.105]
[1752648703620,10.37182272,163.81,163.79,6.105]
[1752648705527,10.37182272,163.81,163.78,6.1052]
[1752648706627,6.1047,163.8,163.78,6.1052]
[1752648706829,6.1047,163.8,163.77,6.1056]
[1752648707029,2.73144341,163.78,163.77,6.1056]
[1752648709429,208.13198912,163.84,163.77,2.73044108]
[1752648709637,2.73044108,163.82,163.77,2.73044108]
[1752648710034,2.73044108,163.82,163.81,6.1043]
[1752648710233,208.13198912,163.84,163.81,6.1043]
[1752648710539,2.73044108,163.82,163.81,6.1043]
[1752648711131,208.13198912,163.84,163.81,6.1043]
[1752648711334,2.73044108,163.82,163.81,6.1043]
[1752648712033,2.73044108,163.82,163.8,6.1045]
[1752648713032,6.1036,163.83,163.8,6.1045]
[1752648713437,6.1036,163.83,163.81,6.1043]
[1752648714132,208.13198912,163.84,163.75,4.26610736]
[1752648714331,208.13198912,163.84,163.77,4.26610736]
[1752648714533,208.13198912,163.84,163.78,5.14302373]
[1752648714733,208.13198912,163.84,163.77,4.26610736]
[1752648714932,208.13198912,163.84,163.78,5.14173685]
[1752648715134,208.13198912,163.84,163.77,4.26610736]
[1752648715335,208.13198912,163.84,163.78,5.14173685]
[1752648715638,208.13198912,163.84,163.77,4.26610736]
[1752648715837,208.13198912,163.84,163.78,5.14101365]
[1752648716141,208.13198912,163.84,163.82,6.1037]
[1752648716435,208.13198912,163.84,163.77,4.26610736]
[1752648716736,208.13198912,163.84,163.83,6.1035]
[1752648718229,885.66,163.95,163.82,4.2648561]
[1752648718535,885.66,163.95,163.85,4.2648561]
[1752648718536,4.2648561,163.93,163.85,4.2648561]
[1752648718741,6.1004,163.92,163.88,6.1014]
[1752648720338,4.2648561,163.93,163.84,4.2648561]
[1752648720539,4.2648561,163.91,163.84,4.2648561]
[1752648720736,180.16,163.94,163.84,4.2648561]
[1752648720937,6.1007,163.91,163.88,6.1014]
[1752648721138,4.2648561,163.91,163.84,4.2648561]
[1752648721937,6.101,163.9,163.84,4.2648561]
[1752648722744,6.101,163.9,163.87,6.1018]
[1752648723043,6.1006,163.91,163.84,4.2648561]
[1752648723438,6.1006,163.91,163.88,6.1016]
[1752648723743,4.2648561,163.93,163.86,4.2648561]
[1752648723943,4.2648561,163.93,163.89,6.1011]
[1752648724243,184.4248561,163.94,163.86,4.2648561]
[1752648724542,184.4248561,163.94,163.81,12.2083]
[1752648724543,186.2596,163.94,163.88,4.2648561]
[1752648725042,186.2596,163.94,163.9,6.1006]
[1752648725743,6.0998,163.93,163.9,6.1006]
[1752648725942,180.16,163.94,163.9,6.1006]
[1752648726844,186.2596,163.94,163.91,6.1005]
[1752648727638,190.5244561,163.94,163.9,6.1008]
[1752648727837,186.2596,163.94,163.9,6.1008]
[1752648728137,190.5244561,163.94,163.9,6.1008]
[1752648728441,6.0999,163.93,163.9,6.1008]
[1752648728638,184.4248561,163.94,163.82,144.11816013]
[1752648728945,10.3652561,163.92,163.85,4.2648561]
[1752648729242,4.2648561,163.92,163.85,4.2648561]
[1752648729632,4.2648561,163.92,163.89,6.101]
[1752648730142,10.3652561,163.92,163.89,6.101]
[1752648731840,10.3652561,163.92,163.9,6.1009]
[1752648732343,10.3652561,163.92,163.85,4.2648561]
[1752648732542,10.3652561,163.92,163.89,6.1013]
[1752648733439,10.3652561,163.92,163.85,4.2648561]
[1752648733440,6.1006,163.91,163.85,4.2648561]
[1752648733640,4.2648561,163.92,163.85,4.2648561]
[1752648733844,10.3652561,163.92,163.89,6.1013]
[1752648737037,6.1004,163.92,163.85,4.2648561]
[1752648737242,4.2648561,163.93,163.85,4.2648561]
[1752648737644,10.3647561,163.93,163.91,6.1006]
[1752648738044,10.3647561,163.93,163.85,4.2648561]
[1752648739146,10.3647561,163.93,163.9,6.1008]
[1752648741147,4.2648561,163.93,163.89,6.1013]
[1752648742044,4.2648561,163.93,163.82,144.11816013]
[1752648742045,4.2648561,163.93,163.88,6.1016]
[1752648742245,180.16,163.94,163.88,6.1016]
[1752648742445,4.2648561,163.92,163.88,6.1016]
[1752648742646,6.1008,163.91,163.88,6.1016]
[1752648744752,10.3651561,163.92,163.89,6.1013]
[1752648745454,4.2648561,163.92,163.84,4.2648561]
[1752648745650,180.16,163.94,163.86,4.2648561]
[1752648745955,190.5246561,163.94,163.9,6.1007]
[1752648746149,190.5246561,163.94,163.86,4.2648561]
[1752648746551,190.5246561,163.94,163.9,6.1007]
[1752648747350,190.5246561,163.94,163.86,4.2648561]
[1752648747553,186.2598,163.94,163.86,4.2648561]
[1752648747856,186.2598,163.94,163.9,6.1007]
[1752648748454,180.16,163.94,163.91,6.1005]
[1752648749355,186.2595,163.94,163.91,6.1005]
[1752648751158,186.2595,163.94,163.9,6.1008]
[1752648752057,180.16,163.94,163.9,6.1008]
[1752648753354,180.16,163.94,163.87,4.2648561]
[1752648753560,180.16,163.94,163.91,6.1004]
[1752648754661,180.16,163.94,163.9,6.1008]
[1752648755062,186.2595,163.94,163.9,6.1008]
[1752648757362,180.16,163.94,163.89,6.1011]
[1752648758460,180.16,163.94,163.87,4.2648561]
[1752648758660,180.16,163.94,163.88,5.1127686]
[1752648758864,180.16,163.94,163.91,6.1005]
[1752648759564,186.2595,163.94,163.9,6.1008]
[1752648761871,180.16,163.94,163.91,6.1004]
[1752648762466,186.2595,163.94,163.91,6.1004]
[1752648763068,2.72638754,163.93,163.91,6.1004]
[1752648763867,180.16,163.94,163.92,6.1002]
[1752648763868,182.88638754,163.94,163.92,6.1002]
[1752648764262,182.88638754,163.94,163.9,2.72638754]
[1752648765368,2.72638754,163.94,163.9,2.72638754]
[1752648765671,2.72638754,163.94,163.91,6.1005]
[1752648766067,2.72638754,163.94,163.9,2.72638754]
[1752648766971,2.72638754,163.94,163.92,6.1002]
[1752648767169,185.8385,163.97,163.9,2.72638754]
[1752648767471,182.46638754,163.97,163.94,6.0992]
[1752648767867,179.74,163.97,163.93,2.72638754]
[1752648768070,182.46638754,163.97,163.95,6.0989]
[1752648768266,2.72638754,163.96,163.92,2.72638754]
[1752648768573,182.46638754,163.97,163.94,6.0992]
[1752648769174,182.46638754,163.97,163.93,8.82608754]
[1752648769371,2.72638754,163.96,163.93,6.0997]
[1752648769877,2.72638754,163.96,163.94,6.0994]
[1752648772876,179.74,163.97,163.94,6.0994]
[1752648773179,2.72638754,163.96,163.94,6.0994]
[1752648773671,2.72638754,163.96,163.95,6.0991]
[1752648774178,2.72638754,163.97,163.95,6.0991]
[1752648775880,6.098,163.98,163.95,6.0991]
[1752648776080,2.72638754,163.98,163.95,6.0991]
[1752648776676,179.66,164.01,163.96,6.0987]
[1752648776882,2.72638754,164.0,163.96,2.72638754]
[1752648777079,2.72638754,164.01,163.97,2.72638754]
[1752648777379,2.72638754,164.0,163.96,2.72638754]
[1752648777882,2.72638754,164.0,163.97,6.0981]
[1752648778278,2.72638754,164.0,163.96,2.72638754]
[1752648779277,2.72638754,164.0,163.98,6.098]
[1752648779681,2.72638754,164.01,163.98,6.0977]
[1752648780182,2.72638754,164.01,163.97,8.82458754]
[1752648780481,2.72638754,163.98,163.95,2.72638754]
[1752648780776,2.72638754,163.98,163.95,6.0987]
[1752648781374,2.72638754,163.97,163.89,5.09377077]
[1752648781578,2.72638754,163.97,163.93,2.72638754]
[1752648782078,2.72638754,163.97,163.95,6.099]
[1752648782985,10.35574972,163.99,163.95,6.099]
[1752648783482,6.098,163.98,163.92,4.25794972]
[1752648783683,527.32,164.03,163.9,4.25794972]
[1752648783684,4.25794972,163.97,163.9,4.25794972]
[1752648783883,4.25794972,163.97,163.91,5.11246976]
[1752648784084,4.25794972,163.97,163.9,4.25794972]
[1752648784290,4.25794972,163.97,163.93,6.0996]
[1752648784588,183.87794972,163.99,163.92,4.25794972]
[1752648784880,183.87794972,163.99,163.93,6.0995]
[1752648785281,183.87794972,163.99,163.9,4.25794972]
[1752648785481,183.87794972,163.99,163.91,5.11210975]
[1752648785685,183.87794972,163.99,163.9,4.25794972]
[1752648785886,4.25794972,163.97,163.91,5.11000663]
[1752648786085,4.25794972,163.97,163.9,4.25794972]
[1752648786286,4.25794972,163.97,163.91,5.1103394]
[1752648786486,10.35634972,163.97,163.93,6.0996]
[1752648790588,4.25794972,163.97,163.93,6.0996]
[1752648790978,10.35654972,163.97,163.93,6.0996]
[1752648791989,6.0987,163.96,163.93,6.0996]
[1752648792490,10.35644972,163.97,163.93,6.0996]
[1752648793590,6.0987,163.96,163.93,6.0996]
[1752648794281,6.0987,163.96,163.94,6.0994]
[1752648794489,10.35644972,163.97,163.94,6.0994]
[1752648794888,4.25794972,163.97,163.95,6.099]
[1752648795090,4.25794972,163.99,163.92,4.25794972]
[1752648795383,4.25794972,163.99,163.93,5.10960434]
[1752648795588,10.35574972,163.99,163.96,6.0985]
[1752648796382,10.35574972,163.99,163.95,6.0989]
[1752648797089,6.098,163.98,163.94,6.0992]
[1752648799392,6.098,163.98,163.95,6.0991]
[1752648799794,527.32,164.03,163.9,12.2017]
[1752648799991,4.25794972,164.02,163.94,4.25794972]
[1752648800191,4.25794972,164.02,163.95,5.11003333]
[1752648800388,10.35464972,164.02,163.98,6.0977]
[1752648801090,6.097,164.01,163.98,6.0977]
[1752648802384,10.35454972,164.02,163.98,6.0977]
[1752648803393,6.0966,164.02,163.98,6.0977]
[1752648803894,6.0966,164.02,163.99,6.0975]
[1752648804090,6.097,164.01,163.95,4.25794972]
[1752648804393,183.85794972,164.03,163.98,6.0977]
[1752648804596,6.0966,164.02,163.98,6.0977]
[1752648805293,6.0969,164.01,163.98,6.0977]
[1752648805589,183.85794972,164.03,163.97,6.0982]
[1752648806497,6.0972,164.01,163.97,6.0982]
[1752648806894,183.85794972,164.03,163.95,4.25794972]
[1752648807094,4.25794972,164.01,163.93,4.25794972]
[1752648807295,4.25794972,164.01,163.94,5.10846697]
[1752648807496,6.0978,163.99,163.96,6.0985]
[1752648807997,4.25794972,164.01,163.93,4.25794972]
[1752648808198,6.0973,164.0,163.94,5.10872713]
[1752648808388,6.0973,164.0,163.93,4.25794972]
[1752648808591,6.0973,164.0,163.94,5.10930252]
[1752648808791,6.0973,164.0,163.93,4.25794972]
[1752648809095,6.0973,164.0,163.94,5.1092011]
[1752648809297,6.0973,164.0,163.97,6.0983]
[1752648809697,6.0976,163.99,163.96,6.0986]
[1752648811695,371.71177274,164.1,163.98,4.25794972]
[1752648811898,371.71177274,164.1,163.9,17.29547077]
[1752648811899,527.14,164.11,163.97,155.16940878]
[1752648812099,182.64,164.1,163.99,4.25794972]
[1752648812399,6.0953,164.06,163.99,4.25794972]
[1752648813000,10.35264972,164.07,164.01,6.0966]
[1752648813200,10.35264972,164.07,163.99,4.25794972]
[1752648813397,6.0947,164.07,163.99,4.25794972]
[1752648813592,10.35264972,164.07,163.99,4.25794972]
[1752648814004,10.35264972,164.07,164.02,6.0964]
[1752648814602,6.095,164.06,164.01,6.0968]
[1752648815202,6.095,164.06,164.02,6.0965]
[1752648816203,10.35264972,164.07,164.0,4.25794972]
[1752648817101,10.35264972,164.07,164.01,6.0966]
[1752648817601,6.0947,164.07,164.01,6.0966]
[1752648817808,10.35264972,164.07,164.01,6.0966]
[1752648818301,10.35334972,164.05,163.99,6.0975]
[1752648818504,4.25794972,164.05,163.99,6.0975]
[1752648819302,4.25794972,164.05,164.0,6.0971]
[1752648820207,10.35314972,164.06,164.0,6.0971]
[1752648821301,6.0952,164.06,164.0,6.0971]
[1752648821505,10.35314972,164.06,164.0,6.0971]
[1752648822103,4.25794972,164.06,164.0,6.0971]
[1752648822311,6.0954,164.05,163.99,6.0975]
[1752648823408,6.0957,164.04,163.99,6.0975]
[1752648825511,6.0956,164.05,164.0,6.0972]
[1752648826513,6.0957,164.04,163.99,6.0974]
[1752648829410,6.0964,164.03,163.98,6.0978]
[1752648829620,4.25794972,164.04,163.95,4.25794972]
[1752648829818,4.25794972,164.04,163.96,5.17080282]
[1752648830017,6.0963,164.03,163.98,6.0979]
[1752648833421,6.0963,164.03,163.99,6.0976]
[1752648834122,6.0965,164.02,163.98,6.0979]
[1752648838929,2.72389931,164.01,163.98,6.0979]
[1752648839925,2.72389931,163.99,163.95,163.1688893]
[1752648840230,8.82169931,163.99,163.95,163.1688893]
[1752648841022,6.0978,163.99,163.95,163.1688893]
[1752648841226,6.0978,163.99,163.96,6.0987]
[1752648841829,4.25748921,164.0,163.96,6.0986]
[1752648842230,10.35488921,164.0,163.96,6.0986]
[1752648843632,10.35488921,164.0,163.92,9.31014265]
[1752648843828,10.35488921,164.0,163.93,5.18204706]
[1752648844034,10.35488921,164.0,163.94,5.18204706]
[1752648844224,6.0977,163.99,163.96,6.0984]
[1752648845639,4.25819009,163.98,163.85,5.05265344]
[1752648845829,4.25819009,164.0,163.83,6.79512865]
[1752648845830,18.31,164.07,163.89,4.25819009]
[1752648846024,5.319554,164.08,163.93,4.25819009]
[1752648846225,6.0971,164.01,163.96,6.0985]
[1752648846535,4.25819009,164.02,163.97,5.16795231]
[1752648846728,6.0977,163.99,163.94,6.0992]
[1752648846930,186.399554,164.08,163.95,9.42416095]
[1752648846931,5.319554,164.08,163.95,9.42416095]
[1752648847134,5.319554,164.08,163.97,4.25819009]
[1752648847135,4.25819009,164.05,163.97,4.25819009]
[1752648847434,4.25819009,164.05,163.98,5.16597086]
[1752648847634,4.25819009,164.05,163.97,10.35629009]
[1752648847835,4.25819009,164.05,163.98,5.16403789]
[1752648848036,6.0967,164.02,163.98,6.0979]
[1752648848335,4.25819009,164.05,163.98,6.0979]
[1752648849140,6.0971,164.01,163.97,10.35639009]
[1752648849440,6.0971,164.01,163.98,5.16460679]
[1752648849642,6.0974,164.0,163.97,6.0982]
[1752648849836,6.0974,164.0,163.98,5.16460679]
[1752648850141,6.0974,164.0,163.97,6.0982]
[1752648850339,6.0974,164.0,163.98,5.16491807]
[1752648850540,6.0974,164.0,163.97,6.0982]
[1752648850839,6.0974,164.0,163.98,5.16491807]
[1752648851039,6.0974,164.0,163.97,6.0982]
[1752648851235,6.0974,164.0,163.98,5.16491807]
[1752648851442,6.0974,164.0,163.97,6.0982]
[1752648851632,6.0974,164.0,163.98,5.16524968]
[1752648851837,6.0974,164.0,163.97,6.0982]
[1752648852037,6.097,164.01,163.98,5.16664497]
[1752648852237,6.097,164.01,163.97,6.0982]
[1752648852433,6.097,164.01,163.98,5.16710059]
[1752648852637,6.097,164.01,163.97,6.0982]
[1752648852839,6.097,164.01,163.98,7.74083479]
[1752648853143,6.0972,164.0,163.99,2.57333755]
[1752648858846,6.0972,164.0,163.97,6.0983]
[1752648859044,6.0972,164.0,163.98,7.73027095]
[1752648859244,6.0972,164.0,163.99,2.57494256]
[1752648861547,8.82088763,164.01,163.99,2.57494256]
[1752648861749,8.82088763,164.01,164.0,2.57494256]
[1752648867652,6.0975,164.0,163.96,8.82258763]
[1752648867851,8.82138763,164.0,163.97,7.73240581]
[1752648868051,8.82138763,164.0,163.98,7.73240581]
[1752648868252,8.82138763,164.0,163.99,2.57494114]
[1752648868453,8.82138763,164.0,163.99,2.57500386]
[1752648870349,6.0975,164.0,163.99,2.57500386]
[1752648870552,8.82138763,164.0,163.99,2.57500386]
[1752648874454,6.0975,164.0,163.99,2.57500386]
[1752648874955,8.82138763,164.0,163.99,2.57500386]
[1752648877153,6.0977,163.99,163.96,8.82248763]
[1752648877350,6.0977,163.99,163.97,7.73674431]
[1752648877554,6.0977,163.99,163.98,7.73674431]
[1752648882154,6.0977,163.99,163.98,5.160968]
[1752648883859,6.0972,164.01,163.98,5.160968]
[1752648884057,2.72388763,164.01,163.96,2.72388763]
[1752648884258,2.72388763,164.01,163.97,5.16289749]
[1752648884462,6.0978,163.99,163.98,5.16289749]
[1752648900368,8.82168763,163.99,163.98,5.16289749]
[1752648901069,2.72388763,163.99,163.91,2.72388763]
[1752648901263,2.72388763,163.94,163.9,2.72388763]
[1752648901669,6.1004,163.92,163.9,2.72388763]
[1752648901870,6.1004,163.92,163.89,2.72388763]
[1752648901871,2.72388763,163.92,163.89,2.72388763]
[1752648902072,2.72388763,163.93,163.89,2.72388763]
[1752648903268,2.72388763,163.93,163.89,8.82518763]
[1752648903269,6.1002,163.92,163.89,8.82518763]